fUSD/lending_fUSD_20240616
["ID","MTS","AMOUNT","RATE_DAILY","PERIOD"]
[329675165,1718566239391,-431.99,0.0002326,2]
[329675166,1718566239417,-170.758616,0.00023631,2]
[329675167,1718566239429,-175.11251,0.00023631,2]
[329675168,1718566239454,-281.952569,0.00023631,2]
[329675169,1718566239471,-170.758616,0.00023926,2]
[329675170,1718566239494,-175.11251,0.00023926,2]
[329675171,1718566239506,-180.0,0.00023964,2]
[329675172,1718566239519,-170.758616,0.00024222,2]
[329675173,1718566239532,-175.11251,0.00024222,2]
[329675174,1718566239574,-158.04,0.00024384,2]
[329675175,1718566239609,-170.758616,0.00024517,2]
[329675176,1718566239622,-175.11251,0.00024517,2]
[329675177,1718566239643,-170.758616,0.00024812,2]
[329675178,1718566239656,-175.11251,0.00024812,2]
[329675179,1718566239672,-553.91,0.00024826,2]
[329675180,1718566239688,-1000.0,0.00024889,2]
[329675181,1718566239713,-2500.0,0.000249,2]
[329675182,1718566239733,-1059.43,0.0002491,2]
[329675183,1718566239749,-841.79,0.00024983,2]
[329675184,1718566239788,-180.0,0.00025641,2]
[329675185,1718566239824,-600.0,0.00026301,5]
[329675186,1718566239838,-1299.99774208,0.0002638,2]
[329675187,1718566239882,-364.17181321,0.00026954,2]
[329675188,1718566239919,-553.91,0.0002709,2]
[329675189,1718566239944,-219.83,0.00027178,2]
[329675190,1718566239971,-1234.51329478,0.00027189,2]
[329675191,1718566240006,-253.97082781,0.00027189,2]
[329675192,1718566240031,-302.4059688,0.00027189,2]
[329675193,1718566240049,-196.47451964,0.00027189,2]
[329675194,1718566240097,-4578.1594,0.00027189,2]
[329675195,1718566240129,-3338.5617,0.00027189,2]
[329675196,1718566240142,-534.4971,0.00027195,2]
[329675197,1718566240158,-1000.0,0.00027195,2]
[329675198,1718566240186,-184.78094522,0.00027197,2]
[329675199,1718566240202,-1234.51329472,0.00027258,2]
[329675200,1718566240222,-734.39,0.00027278,3]
[329675201,1718566240245,-176.75608766,0.00027285,2]
[329675202,1718566240284,-603.79361166,0.00027286,2]
[329675203,1718566240316,-366.66486851,0.00027286,2]
[329675204,1718566240340,-14064.07687112,0.00027287,2]
[329675205,1718566240487,-688.35,0.00027287,2]
[329675206,1718566240644,-714641.89050685,0.00027287,2]
[329675207,1718566240658,-285358.10949315,0.00027287,2]
[329675208,1718566240750,-2380.1793995,0.00027287,2]
[329675209,1718566240812,-49976.81770507,0.00027287,2]
[329675210,1718566240925,-167841.89778933,0.00027287,2]
[329675295,1718566243000,-546958.01061663,0.00027287,2]
[329675297,1718566243034,-824.91667545,0.00027287,2]
[329675300,1718566243081,-3018.77743687,0.00027287,2]
[329675306,1718566243197,-279.02092164,0.00027287,2]
[329675309,1718566243249,-113317.48558228,0.00027287,2]
[329675311,1718566243286,-65612.45788389,0.00027289,2]
[329675313,1718566243305,-2831.64,0.00027289,2]
[329675316,1718566243402,-1456.19258319,0.00027289,2]
[329675319,1718566243425,-17129.51154448,0.00027289,2]
[329675328,1718566243622,-1114.04420081,0.00027289,2]
[329675331,1718566243667,-886.96472751,0.00027289,2]
[329675342,1718566243870,-325.93999993,0.00027286,2]
[329675351,1718566244041,-11338.36342012,0.00027286,2]
[329675376,1718566244555,-4547.36334954,0.00027286,2]
[329675379,1718566244604,-710.40794312,0.00027286,2]
[329675381,1718566244618,-373.12513078,0.00027286,2]
[329675456,1718566245839,-6405.26050423,0.00027286,2]
[329675465,1718566245964,-740.76734568,0.00027286,2]
[329675502,1718566246464,-332220.58353757,0.00027286,2]
[329675515,1718566246656,-25.94254781,0.00027286,2]
[329675517,1718566246681,-1047.95466654,0.00027286,2]
[329675520,1718566246701,-8552.09803894,0.00027286,2]
[329675523,1718566246720,-24727.82657836,0.00027286,2]
[329675528,1718566246791,-490.3621,0.00027286,2]
[329675631,1718566248413,-487.94323696,0.00027286,2]
[329675652,1718566248740,-362.68407531,0.00027286,2]
[329675683,1718566249330,-167.46941861,0.00027285,2]
[329675684,1718566249344,-1506.4401156,0.00027286,2]
[329675685,1718566249362,-308.43455555,0.00027286,2]
[329675705,1718566249724,-255.11571328,0.00027286,2]
[329675715,1718566249896,-756.71535306,0.00027286,2]
[329676024,1718566270579,948.58301108,0.00014,2]
[329676025,1718566285011,1042.33917751,0.00014,2]
[329676026,1718566332035,185.0,0.0002576,120]
[329676027,1718566368479,8753.95752946,0.00014,2]
[329676028,1718566424777,845817.6630931,0.00014,2]
[329676029,1718566435605,4003.78932935,9e-05,2]
[329676030,1718566482239,659.0,0.00014,2]
[329676031,1718566485892,844.0,0.00014,2]
[329676032,1718566875350,-283.24040768,0.00014875,2]
[329676033,1718566875410,-491.10975792,0.00014875,2]
[329676034,1718566875457,-155.0,0.00014875,2]
[329676035,1718566875511,-1000.0,0.00014876,2]
[329676036,1718566875769,-163.46950476,0.00014876,2]
[329676037,1718566875813,-920.53374068,0.00014877,2]
[329676038,1718566875853,-1250.47073675,0.00014877,2]
[329676039,1718566875905,-155.0,0.00014878,2]
[329676040,1718566875939,-410.0140434,0.00014878,2]
[329676041,1718566875984,-3068.86718638,0.00014878,2]
[329676042,1718566876029,-155.0,0.00014879,2]
[329676043,1718566876074,-2371.26555014,0.00014879,2]
[329676044,1718566876143,-35521.22347996,0.00014879,2]
[329676045,1718566876220,-4449.51330229,0.00014879,2]
[329676046,1718566876298,-291.81763565,0.0001488,2]
[329676047,1718566876362,-10527.1686057,0.0001488,2]
[329676048,1718566876429,-291.81763565,0.0001488,2]
[329676049,1718566876468,-235.37048303,0.0001488,2]
[329676050,1718566876512,-291.81763565,0.0001488,2]
[329676051,1718566876558,-150.0,0.00014886,2]
[329676052,1718566876609,-151.39412324,0.00014891,2]
[329676053,1718566876654,-247.88937106,0.000149,2]
[329676054,1718566876700,-303.84056028,0.000149,2]
[329676055,1718566876750,-671021.20307065,0.00014999,2]
[329676061,1718567057469,164.0,0.00025644,120]
[329676062,1718567350161,-482.45243267,0.00013568,2]
[329676063,1718567350210,-2353.46210869,0.00013569,2]
[329676064,1718567350240,-79.24335864,0.00013569,2]
[329676065,1718567382526,-5588.69804539,0.00013568,2]
[329676066,1718567382573,-19505.51274651,0.00013569,2]
[329676067,1718567382623,-153.31,0.00013575,2]
[329676068,1718567382689,-2155.01321686,0.0001499,2]
[329676069,1718567382736,-1000.0,0.00014999,2]
[329676070,1718567382825,-21050.05988774,0.00014999,2]
[329676071,1718567382873,-465023.05364614,0.00015,2]
[329676091,1718567433073,-621.28822806,0.00015,2]
[329676092,1718567433102,-4698.92261733,0.00015,2]
[329676093,1718567433133,-615.94663685,0.00015,2]
[329676094,1718567433156,-38299.22453561,0.00015,2]
[329676095,1718567433167,-5217.21187865,0.00015,2]
[329676096,1718567433179,-410.0140434,0.00016722,2]
[329676097,1718567433190,-4449.51330229,0.00016723,2]
[329676098,1718567433202,-283.24040768,0.00016772,2]
[329676099,1718567433218,-250.0,0.00016773,2]
[329676100,1718567433228,-390.5,0.00016829,2]
[329676101,1718567433249,-231.1,0.00016903,2]
[329676102,1718567433267,-168.11,0.00016943,2]
[329676103,1718567433292,-164.0,0.00017096,2]
[329676104,1718567433303,-419.72,0.0001721,2]
[329676105,1718567433313,-499.99,0.0001721,2]
[329676106,1718567433325,-1723.61,0.00017228,2]
[329676107,1718567433337,-150.99,0.00017228,2]
[329676108,1718567433353,-266.32,0.00017228,2]
[329676109,1718567433376,-2373.1700286,0.00017232,2]
[329676110,1718567433387,-546.38140668,0.00017246,2]
[329676111,1718567433405,-1000.0,0.00017353,2]
[329676112,1718567433418,-352.71,0.00017436,2]
[329676113,1718567433430,-7409.01,0.00017436,2]
[329676114,1718567433444,-9999.99,0.00017436,2]
[329676115,1718567433459,-10000.0,0.00017779,2]
[329676116,1718567433475,-534.19,0.00017895,2]
[329676117,1718567433511,-10508.13825006,0.00018,2]
[329676118,1718567433529,-175.54941137,0.000189,2]
[329676119,1718567433540,-128041.49367878,0.00019,2]
[329676120,1718567433570,-250.0,0.00019042,2]
[329676121,1718567433581,-164.0,0.00019233,2]
[329676122,1718567433607,-1000.0,0.00019522,2]
[329676123,1718567433628,-419.72,0.00019949,2]
[329676124,1718567433641,-155.0,0.0002,2]
[329676125,1718567433669,-3755.35227568,0.0002,2]
[329676126,1718567433698,-4891.93757754,0.0002,2]
[329676127,1718567433720,-534.19,0.00020158,2]
[329676128,1718567433733,-153.31,0.00020362,2]
[329676129,1718567433743,-300.0,0.000209,7]
[329676130,1718567433755,-800.0,0.00021178,2]
[329676131,1718567433765,-1000.0,0.00021197,2]
[329676132,1718567433815,-800.0,0.00021205,2]
[329676133,1718567433827,-800.0,0.00021233,2]
[329676134,1718567433840,-800.0,0.0002126,2]
[329676135,1718567433856,-164.0,0.0002137,2]
[329676136,1718567433885,-1000.0,0.00021691,2]
[329676137,1718567433905,-8570.0,0.000217,5]
[329676138,1718567433919,-500.0,0.000219,2]
[329676139,1718567433937,-250.0,0.00021918,2]
[329676140,1718567433947,-359.99,0.00021918,2]
[329676141,1718567433964,-800.0,0.00022164,2]
[329676142,1718567433980,-534.19,0.00022422,2]
[329676143,1718567433990,-419.72,0.00022689,2]
[329676144,1718567434001,-175.54941136,0.00023285,2]
[329676145,1718567434011,-164.0,0.00023507,2]
[329676146,1718567434022,-231.1,0.00023664,2]
[329676147,1718567434039,-1000.0,0.0002386,2]
[329676148,1718567434050,-180.0,0.0002423,2]
[329676149,1718567434072,-800.0,0.00024356,2]
[329676150,1718567434082,-156.44,0.00024384,2]
[329676151,1718567434117,-153.2,0.00024384,2]
[329676152,1718567434141,-160.27,0.00024524,2]
[329676153,1718567434152,-1946.35,0.00024657,2]
[329676154,1718567434162,-534.19,0.00024686,2]
[329676155,1718567434174,-2500.0,0.000249,2]
[329676156,1718567434186,-1000.0,0.00026029,2]
[329676157,1718567434196,-800.0,0.00026137,2]
[329676158,1718567434207,-700.0,0.000267,9]
[329676159,1718567434220,-1000.0,0.000268,9]
[329676160,1718567434230,-198.31149684,0.0002685,2]
[329676161,1718567434265,-32268.32196116,0.0002688,2]
[329676162,1718567434277,-1400.0,0.000269,9]
[329676163,1718567434292,-534.19,0.0002695,2]
[329676164,1718567434303,-198.31149681,0.00027055,2]
[329676165,1718567434313,-303.84056027,0.00027077,2]
[329676166,1718567434325,-338.43957649,0.00027121,2]
[329676167,1718567434335,-598.03532463,0.00027122,3]
[329676168,1718567434346,-120159.1028764,0.0002713,2]
[329676169,1718567434363,-500.0,0.00027177,2]
[329676170,1718567434376,-184.78094521,0.00027189,2]
[329676171,1718567434386,-14445.11159095,0.00027196,2]
[329676172,1718567434409,-267.99250484,0.00027196,2]
[329676173,1718567434425,-14445.11159094,0.00027239,2]
[329676174,1718567434438,-198.31149681,0.0002726,2]
[329676175,1718567434452,-267.99250479,0.00027275,2]
[329676176,1718567434464,-14445.11159094,0.00027282,2]
[329676177,1718567434477,-161.1208591,0.00027285,2]
[329676178,1718567434496,-449.71947073,0.00027285,2]
[329676179,1718567434507,-1803.85180538,0.00027286,2]
[329676180,1718567434544,-1811.51802093,0.00027286,2]
[329676181,1718567434582,-669.91126909,0.00027286,2]
[329676182,1718567434593,-346.98018316,0.00027286,2]
[329676183,1718567434604,-209.69,0.00027288,2]
[329676184,1718567434615,-2566.62547,0.00027289,2]
[329676185,1718567434626,-23821.34978323,0.00027296,2]
[329676186,1718567434643,-184.29208948,0.00027297,2]
[329676187,1718567434656,-1148.70948194,0.00027297,2]
[329676188,1718567434700,-680.0,0.000273,4]
[329676189,1718567434746,-1874.0,0.000273,4]
[329676190,1718567434768,-1700.0,0.000273,9]
[329676191,1718567434792,-14445.11159094,0.00027325,2]
[329676192,1718567434803,-267.99250479,0.00027354,2]
[329676193,1718567434815,-14445.11159094,0.00027368,2]
[329676194,1718567434866,-1404.15206518,0.0002737,2]
[329676195,1718567434880,-303.84056027,0.00027374,2]
[329676196,1718567435051,-227.89366087,0.00027385,2]
[329676197,1718567435082,-157.1420865,0.00027394,2]
[329676198,1718567435093,-374.48781906,0.00027394,2]
[329676199,1718567435104,-4122.0,0.00027395,2]
[329676200,1718567435128,-4122.0,0.00027395,2]
[329676201,1718567435151,-4122.0,0.00027395,2]
[329676202,1718567435162,-4122.0,0.00027395,2]
[329676203,1718567435176,-4122.0,0.00027395,2]
[329676204,1718567435188,-208.56853415,0.00027395,2]
[329676205,1718567435216,-201.26183121,0.00027395,2]
[329676206,1718567435243,-1038.26184162,0.00027395,2]
[329676207,1718567435257,-428.11679478,0.00027395,2]
[329676208,1718567435271,-257.9077799,0.00027395,2]
[329676209,1718567435285,-730.63280455,0.00027395,2]
[329676210,1718567435298,-567.61897197,0.00027395,2]
[329676211,1718567435311,-156.29081489,0.00027395,2]
[329676212,1718567435328,-176.60614506,0.00027395,2]
[329676213,1718567435339,-199.01239855,0.00027395,2]
[329676214,1718567435350,-209.88350116,0.00027395,2]
[329676215,1718567435374,-155.50285907,0.00027395,2]
[329676216,1718567435387,-268.17495361,0.00027395,2]
[329676217,1718567435399,-1392.58693338,0.00027395,2]
[329676218,1718567435419,-296.10016427,0.00027395,2]
[329676219,1718567435435,-371.05229482,0.00027395,2]
[329676220,1718567435449,-408.70626969,0.00027395,2]
[329676221,1718567435466,-253.99670426,0.00027395,2]
[329676223,1718567435487,-176.20198452,0.00027395,2]
[329676225,1718567435500,-193.56420238,0.00027395,2]
[329676227,1718567435511,-224.59665607,0.00027395,2]
[329676229,1718567435521,-217.82499184,0.00027395,2]
[329676230,1718567435534,-497.5963215,0.00027395,2]
[329676232,1718567435546,-248.74314656,0.00027395,2]
[329676233,1718567435558,-162.09296142,0.00027395,2]
[329676236,1718567435588,-447.9910709,0.00027395,2]
[329676237,1718567435599,-622.97856983,0.00027395,2]
[329676239,1718567435611,-158.70345895,0.00027395,2]
[329676240,1718567435627,-156.63359836,0.00027395,2]
[329676241,1718567435643,-235.40794048,0.00027395,2]
[329676242,1718567435657,-533.19286088,0.00027395,2]
[329676243,1718567435670,-201.52142018,0.00027395,2]
[329676244,1718567435682,-155.57048394,0.00027395,2]
[329676245,1718567435694,-150.01,0.00027395,2]
[329676246,1718567435706,-5000.0,0.00027395,7]
[329676247,1718567435720,-203.67777924,0.00027395,2]
[329676248,1718567435976,-98.78729315,0.00027395,2]
[329676249,1718567435989,-157.48170685,0.00027395,2]
[329676250,1718567436005,-862.021,0.00027395,2]
[329676251,1718567436055,-5368.65254949,0.00027395,2]
[329676252,1718567436071,-2778.95507896,0.00027395,2]
[329676253,1718567436085,-365.11746198,0.00027395,2]
[329676254,1718567436157,-345.5,0.00026028,2]
[329676255,1718567436193,-2007.96210869,0.00026028,2]
[329676256,1718567436206,-905.70337545,0.00027395,2]
[329676257,1718567436236,-487.81554988,0.00027395,2]
[329676258,1718567436247,-155.36916986,0.00027395,2]
[329676259,1718567436265,-2367.55947148,0.00027395,2]
[329676260,1718567436292,-904.04950165,0.00027395,2]
[329676261,1718567436316,-304.88051942,0.00027395,2]
[329676262,1718567436336,-162.42899294,0.00027395,2]
[329676263,1718567436348,-103.85204611,0.00027395,2]
[329676264,1718567436406,-1014.49527773,0.00027395,2]
[329676265,1718567436496,-327.39805379,0.00027395,2]
[329676266,1718567436718,-747.65291154,0.00027395,2]
[329676267,1718567436752,-667.91150871,0.00027395,2]
[329676268,1718567436769,-208.52163194,0.00027395,2]
[329676269,1718567436789,-234.89084472,0.00027395,2]
[329676270,1718567436812,-615.94663685,0.00027395,2]
[329676271,1718567436830,-238.93552269,0.00027395,2]
[329676272,1718567436848,-336.74865539,0.00027395,2]
[329676273,1718567436868,-1338.03606711,0.00027395,2]
[329676274,1718567436885,-201.41562076,0.00027395,2]
[329676275,1718567436901,-354.38058669,0.00027395,2]
[329676276,1718567436920,-2273.43970306,0.00027395,2]
[329676277,1718567436937,-9443.01427362,0.00027395,2]
[329676278,1718567436980,-3053.59676031,0.00027395,2]
[329676279,1718567437028,-804.43551989,0.00027395,2]
[329676280,1718567439030,-12126.62771641,0.00027395,2]
[329676281,1718567439112,-1068.1986391,0.00027395,2]
[329676282,1718567439391,-1494.38448934,0.00027395,2]
[329676283,1718567439593,-12291.65950098,0.00027395,2]
[329676284,1718567439677,-1603.2000001,0.00027395,2]
[329676285,1718567439800,-6246.50199888,0.00027395,2]
[329676286,1718567439921,-285358.10949315,0.00027395,2]
[329676287,1718567440324,-301.52429435,0.00027395,2]
[329676288,1718567440697,-363.3164253,0.00027395,2]
[329676395,1718567443867,-2385.41255903,0.00027395,2]
[329676396,1718567444136,-101828.01451466,0.00027395,2]
[329676397,1718567444343,-188707.92028445,0.00027395,2]
[329676398,1718567444383,-32783.29276291,0.00027395,2]
[329676399,1718567444472,-361.32,0.00027395,2]
[329676400,1718567444501,-432.917,0.00027395,2]
[329676401,1718567444687,-4661.7770805,0.00027395,2]
[329676402,1718567444917,-1788.42667565,0.00027395,2]
[329676403,1718567445102,-3097.70689365,0.00027395,2]
[329676409,1718567446885,-150.9,0.0002739,2]
[329676410,1718567446904,-790.15466901,0.00027395,2]
[329676411,1718567446924,-22190.91109511,0.00027395,2]
[329676412,1718567447086,-1253.42281972,0.00027395,2]
[329676428,1718567447570,-226.81877563,0.000201,2]
[329676429,1718567447603,-54.21722006,0.00027395,2]
[329676430,1718567449603,-9835.43158031,0.00027395,2]
[329676431,1718567449654,-388.3480355,0.00027395,2]
[329676434,1718567449736,-4600.0,0.00027395,2]
[329676439,1718567449987,-278324.29946014,0.00027395,2]
[329676470,1718567450564,-158.45165058,0.00027295,2]
[329676471,1718567450578,-873.37995794,0.00027395,2]
[329677008,1718567534224,200.13770573,0.00027,30]
[329677009,1718567665616,176.4,0.00025746,120]
[329677014,1718568074232,-155.0,0.0001492,2]
[329677015,1718568074274,-2353.46210869,0.00014921,2]
[329677016,1718568074320,-787.16034203,0.00014921,2]
[329677017,1718568074356,-4449.51330229,0.00014921,2]
[329677018,1718568074391,-532.05845602,0.00014921,2]
[329677019,1718568074438,-205.87538729,0.00014921,2]
[329677020,1718568074480,-155.0,0.00014921,2]
[329677021,1718568074524,-155.0,0.00014922,2]
[329677022,1718568074580,-626.43651989,0.00014922,2]
[329677023,1718568074625,-283.24040768,0.00014922,2]
[329677024,1718568074658,-155.0,0.00014923,2]
[329677025,1718568074849,-155.0,0.00014923,2]
[329677026,1718568074888,-793.21543571,0.00014923,2]
[329677027,1718568074939,-689.43531806,0.00014923,2]
[329677028,1718568074997,-155.0,0.00014923,2]
[329677029,1718568075048,-300.0,0.00014923,2]
[329677030,1718568075095,-155.0,0.00014924,2]
[329677031,1718568075150,-2339.1107069,0.00014924,2]
[329677032,1718568075189,-155.0,0.00014924,2]
[329677033,1718568075229,-162.81149556,0.00014924,2]
[329677034,1718568075272,-155.0,0.00014924,2]
[329677035,1718568075315,-206.19824578,0.00014924,2]
[329677036,1718568075358,-158.71096478,0.00014924,2]
[329677037,1718568075409,-536.72357785,0.00014925,2]
[329677038,1718568075453,-155.0,0.00014926,2]
[329677039,1718568075489,-155.0,0.00014926,2]
[329677040,1718568075542,-532.05845602,0.00014926,2]
[329677041,1718568075577,-1254.57506773,0.00014926,2]
[329677042,1718568075619,-659.81262562,0.00014927,2]
[329677043,1718568075658,-195.9976809,0.00014928,2]
[329677044,1718568075696,-1068.73915113,0.00014929,2]
[329677045,1718568075733,-408.01644595,0.00014929,2]
[329677046,1718568075775,-381.67393561,0.00014989,2]
[329677047,1718568075818,-499.99,0.00014989,2]
[329677048,1718568075869,-908.93,0.0001499,2]
[329677049,1718568075927,-258.92,0.0001499,3]
[329677050,1718568075973,-776.79,0.0001499,3]
[329677051,1718568076025,-150.99,0.0001499,2]
[329677052,1718568076073,-35521.22347996,0.00014999,2]
[329677053,1718568076114,-668845.8173269,0.00014999,2]
[329677054,1718568085432,-23225.44563149,0.00014999,2]
[329677055,1718568086673,258.37137548,0.00014998,2]
[329677056,1718568090349,410.0140434,0.00014998,2]
[329677057,1718568093419,546.38140668,0.00014999,2]
[329677058,1718568095145,1000.0,0.00014999,2]
[329677059,1718568105916,-1250.47073675,0.00014999,2]
[329677060,1718568105973,-217435.95997193,0.00015,2]
[329677061,1718568291494,-2353.46210869,0.0001499,2]
[329677062,1718568291547,-532.05845602,0.00014991,2]
[329677063,1718568291610,-155.0,0.00014991,2]
[329677064,1718568291719,-787.16034203,0.00014991,2]
[329677065,1718568291763,-155.0,0.00014991,2]
[329677066,1718568291797,-155.0,0.00014992,2]
[329677067,1718568291842,-1626.58334271,0.00014992,2]
[329677068,1718568291893,-1250.47073675,0.00014993,2]
[329677069,1718568291953,-410.0140434,0.00014994,2]
[329677070,1718568292018,-300.0,0.00014994,2]
[329677071,1718568292057,-155.0,0.00014998,2]
[329677072,1718568292110,-4763.75015336,0.00015,2]
[329677073,1718568292184,-351338.50081704,0.00015,2]
[329677074,1718568307721,185.0,0.00026729,120]
[329677075,1718568328464,-162.36595756,0.00014898,2]
[329677076,1718568328509,-2339.1107069,0.00014989,2]
[329677077,1718568328554,-1336.55899348,0.00014998,2]
[329677078,1718568328593,-410.0140434,0.00014998,2]
[329677079,1718568328657,-184.23983074,0.00014998,2]
[329677080,1718568328700,-266.98385684,0.00014998,2]
[329677081,1718568328747,-238.93552269,0.00014998,2]
[329677082,1718568328792,-613.42761844,0.00014998,2]
[329677083,1718568328863,-1624.43648765,0.00014998,2]
[329677084,1718568328913,-161.06281372,0.00014999,2]
[329677085,1718568328968,-593.18713097,0.00014999,2]
[329677086,1718568329028,-786.60119274,0.00014999,2]
[329677087,1718568329064,-130699.62472792,0.00015,2]
[329677088,1718568329116,-155.0,0.00015,2]
[329677089,1718568329162,-4761.45992556,0.00015,2]
[329677090,1718568332024,629.85,0.00014897,2]
[329677091,1718568370524,7440.44199112,0.00014897,2]
[329677092,1718568440278,180.8170053,0.00014897,2]
[329677095,1718568632822,-627.08000007,0.00015783,2]
[329677096,1718568632838,-45.46584297,0.00015783,2]
[329677097,1718568632871,-250.0,0.00016524,2]
[329677098,1718568632889,-109.2641569,0.00017258,2]
[329677099,1718568632906,-365.6716626,0.00017258,2]
[329677100,1718568632936,-234.3283374,0.00017258,2]
[329677101,1718568632955,-483.71393226,0.00017258,2]
[329677102,1718568632989,-1361.45276237,0.00017258,2]
[329677103,1718568633017,-1042.16772,0.00017258,2]
[329677104,1718568633041,-702.39724797,0.00017258,2]
[329677105,1718568633058,-1630.27435768,0.00017259,2]
[329677106,1718568633073,-1702.52774939,0.00017259,2]
[329677107,1718568633084,-499.99,0.00017808,2]
[329677108,1718568633097,-3745.66762605,0.0001844,2]
[329677109,1718568633108,-885.58187898,0.000195,2]
[329677110,1718568633139,-500.43,0.00019606,2]
[329677111,1718568633164,-3898.38718173,0.0002,2]
[329677112,1718568633176,-326.5417784,0.0002,2]
[329677113,1718568633193,-1271.44060126,0.00020574,2]
[329677114,1718568633225,-410.0140434,0.00020574,2]
[329677115,1718568633236,-1000.0,0.00020699,2]
[329677116,1718568633255,-3338.42722587,0.00020998,2]
[329677117,1718568633274,-1780.84198878,0.00020999,2]
[329677118,1718568633310,-10137.88226977,0.00020999,2]
[329677119,1718568633373,-888.50890406,0.00020999,2]
[329677120,1718568633431,-6928.40433783,0.00020999,2]
[329677121,1718568633461,-5000.0,0.00021084,2]
[329677122,1718568633473,-10000.0,0.00021085,2]
[329677123,1718568633498,-185.0,0.00021383,2]
[329677124,1718568633536,-151.98,0.00021549,2]
[329677125,1718568633548,-2462.88,0.00021669,2]
[329677126,1718568633563,-705.08,0.00021795,2]
[329677127,1718568633584,-231.12,0.00021832,2]
[329677128,1718568633599,-500.43,0.0002187,2]
[329677129,1718568633624,-898.0,0.000219,2]
[329677130,1718568633657,-176.31,0.00021918,2]
[329677131,1718568633670,-299.99,0.00021918,2]
[329677132,1718568633700,-176.4,0.00022068,2]
[329677133,1718568633725,-249.60854914,0.0002363,2]
[329677134,1718568633743,-6987.678318,0.00023631,2]
[329677135,1718568633757,-9695.496662,0.00023631,2]
[329677136,1718568633775,-4658.452212,0.00023631,2]
[329677137,1718568633787,-6987.678318,0.00023926,2]
[329677138,1718568633812,-9695.496662,0.00023926,2]
[329677139,1718568633823,-4658.452212,0.00023926,2]
[329677140,1718568633843,-2503.08,0.00024057,2]
[329677141,1718568633862,-2059.47906552,0.00024116,2]
[329677142,1718568633883,-2503.08,0.00024117,2]
[329677143,1718568633895,-500.43,0.00024134,2]
[329677144,1718568633919,-2507.67,0.00024167,2]
[329677145,1718568633940,-6987.678318,0.00024222,2]
[329677146,1718568633959,-9695.496662,0.00024222,2]
[329677147,1718568633986,-4658.452212,0.00024222,2]
[329677148,1718568634005,-180.0,0.0002423,2]
[329677149,1718568634028,-151.98,0.00024289,2]
[329677150,1718568634073,-517.84,0.00024374,3]
[329677151,1718568634085,-1353.83,0.00024376,2]
[329677152,1718568634121,-577.96,0.00024384,2]
[329677153,1718568634141,-150.13,0.00024384,2]
[329677154,1718568634192,-3309.25,0.00024498,2]
[329677155,1718568634205,-749.54697545,0.00024516,2]
[329677156,1718568634250,-6987.678318,0.00024517,2]
[329677157,1718568634278,-9695.496662,0.00024517,2]
[329677158,1718568634307,-4658.452212,0.00024517,2]
[329677159,1718568634328,-705.08,0.0002452,2]
[329677160,1718568634354,-2706.26596711,0.00024699,2]
[329677161,1718568634409,-316.61556883,0.00024781,2]
[329677162,1718568634434,-150.0,0.00024795,2]
[329677163,1718568634472,-150.0,0.00024795,2]
[329677164,1718568634487,-150.0,0.00024795,2]
[329677165,1718568634501,-216.99201886,0.00024796,2]
[329677166,1718568634524,-155.0,0.00024796,2]
[329677167,1718568634537,-539.38344026,0.00024797,2]
[329677168,1718568634551,-50823.50471095,0.00024798,2]
[329677169,1718568634565,-43229.32016204,0.00024798,2]
[329677170,1718568634584,-255.97559429,0.00024798,2]
[329677171,1718568634600,-734.6075021,0.00024798,2]
[329677172,1718568634659,-6603.60145245,0.00024798,2]
[329677173,1718568634675,-6987.678318,0.00024812,2]
[329677174,1718568634687,-9695.496662,0.00024812,2]
[329677175,1718568634711,-4658.452212,0.00024812,2]
[329677176,1718568634732,-2507.67,0.00024881,2]
[329677177,1718568634752,-2500.0,0.000249,2]
[329677178,1718568634772,-1250.0,0.000249,2]
[329677179,1718568634784,-6806.05267092,0.000249,2]
[329677180,1718568634815,-155.0,0.000249,2]
[329677181,1718568634829,-198.31149681,0.000249,2]
[329677182,1718568634847,-254.44929041,0.0002499,2]